bitfinex/quotes_SOLUSD_20250601
["timestamp","ask_amount","ask_price","bid_price","bid_amount"]
[1748760171759,9.33973159,155.21,155.17,9.33973159]
[1748760171934,9.33973159,155.21,155.16,19.33973159]
[1748760172640,9.33973159,155.21,155.17,9.33973159]
[1748760173048,15.78277031,155.21,155.17,9.33973159]
[1748760173863,9.33973159,155.22,155.18,9.33973159]
[1748760174061,6.44216753,155.23,155.19,9.33973159]
[1748760174062,15.78189912,155.23,155.19,9.33973159]
[1748760174448,15.78189912,155.23,155.18,9.33973159]
[1748760174644,21.04877505,155.23,155.18,14.60660752]
[1748760174862,14.60660752,155.22,155.18,14.60660752]
[1748760175062,21.04916841,155.22,155.18,14.60660752]
[1748760177751,21.04916841,155.22,155.17,14.60660752]
[1748760179252,14.60660752,155.21,155.17,14.60660752]
[1748760179947,14.60660752,155.21,155.16,24.60660752]
[1748760180153,14.60660752,155.2,155.16,24.60660752]
[1748760181946,21.05009775,155.2,155.16,14.60660752]
[1748760186864,6.44198957,155.24,155.18,14.60660752]
[1748760187059,14.60660752,155.23,155.19,14.60660752]
[1748760187781,14.60660752,155.22,155.18,14.60660752]
[1748760190771,14.60660752,155.23,155.19,14.60660752]
[1748760194176,14.60660752,155.22,155.19,14.60660752]
[1748760196185,14.60660752,155.22,155.18,21.05066053]
[1748760196380,6.44190454,155.24,155.18,21.05066053]
[1748760196586,14.60660752,155.22,155.18,21.05066053]
[1748760199957,14.60660752,155.23,155.18,21.05066053]
[1748760200280,14.60660752,155.23,155.19,14.60660752]
[1748760201278,14.60660752,155.23,155.19,21.05011598]
[1748760202054,14.60660752,155.23,155.19,6.44350846]
[1748760202254,14.60660752,155.22,155.19,6.44350846]
[1748760202457,14.60660752,155.22,155.18,21.05058141]
[1748760203092,6.44172379,155.24,155.18,21.05058141]
[1748760203288,14.60660752,155.22,155.18,21.05058141]
[1748760204883,9.34899492,155.22,155.18,15.79296881]
[1748760208760,9.34899492,155.22,155.18,6.44397389]
[1748760212785,9.34899492,155.25,155.2,9.34899492]
[1748760213980,9.34899492,155.25,155.21,9.34899492]
[1748760215283,9.34899492,155.25,155.22,6.44246875]
[1748760217501,19.36899492,155.27,155.23,9.34899492]
[1748760217675,9.34899492,155.27,155.23,9.34899492]
[1748760218394,9.34899492,155.27,155.22,15.79146367]
[1748760220887,9.34899492,155.27,155.23,9.34899492]
[1748760221399,9.34899492,155.26,155.22,9.34899492]
[1748760223600,9.34899492,155.26,155.23,6.44205372]
[1748760228696,9.34899492,155.26,155.22,6.44232984]
[1748760229818,9.34899492,155.26,155.22,15.79132476]
[1748760231089,9.34899492,155.27,155.22,15.79132476]
[1748760238101,9.34899492,155.26,155.22,15.79132476]
[1748760239523,9.34899492,155.27,155.22,15.79132476]
[1748760240230,10.0,155.31,155.25,9.34899492]
[1748760240427,10.0,155.31,155.22,51.0919787]
[1748760240428,19.34899492,155.31,155.27,9.34899492]
[1748760241316,19.34899492,155.31,155.26,9.34899492]
[1748760241515,19.34899492,155.31,155.26,15.78952265]
[1748760244035,1.6029,155.33,155.27,9.34899492]
[1748760244326,10.95189492,155.33,155.29,9.34899492]
[1748760244507,10.95189492,155.33,155.28,9.34899492]
[1748760245128,9.34899492,155.32,155.28,6.4397327]
[1748760246508,9.34899492,155.32,155.27,15.78930919]
[1748760246715,9.34899492,155.32,155.27,9.34899492]
[1748760248539,15.78735005,155.32,155.27,9.34899492]
[1748760248911,9.34899492,155.31,155.27,9.34899492]
[1748760249137,9.34899492,155.3,155.26,9.34899492]
[1748760249940,9.34899492,155.3,155.25,9.34899492]
[1748760250120,9.34899492,155.28,155.24,108.94899492]
[1748760250321,9.34899492,155.28,155.24,89.6]
[1748760250716,6.44039415,155.27,155.23,9.34899492]
[1748760251519,15.78938907,155.27,155.22,35.34899492]
[1748760251720,9.34899492,155.26,155.22,35.34899492]
[1748760252440,6.44039415,155.27,155.22,35.34899492]
[1748760252441,15.78938907,155.27,155.22,35.34899492]
[1748760253638,9.34899492,155.25,155.21,9.34899492]
[1748760253845,9.34899492,155.25,155.2,19.34899492]
[1748760254940,6.44163875,155.24,155.2,9.34899492]
[1748760255625,15.79063367,155.24,155.2,9.34899492]
[1748760258534,15.79063367,155.24,155.19,35.34899492]
[1748760263049,15.79063367,155.24,155.19,41.79244216]
[1748760263545,15.79063367,155.24,155.2,9.34899492]
[1748760263934,9.34899492,155.24,155.2,9.34899492]
[1748760265450,15.79035992,155.25,155.2,9.34899492]
[1748760266638,9.34899492,155.24,155.2,9.34899492]
[1748760267243,9.34899492,155.22,155.17,41.79343398]
[1748760268161,9.34899492,155.21,155.16,25.79385059]
[1748760268936,9.34899492,155.21,155.17,9.34899492]
[1748760271761,15.79175763,155.22,155.17,9.34899492]
[1748760272466,15.79175763,155.22,155.18,9.34899492]
[1748760280970,15.79117723,155.23,155.18,15.79311814]
[1748760287484,9.34899492,155.21,155.16,9.34899492]
[1748760287653,9.34899492,155.2,155.15,35.34899492]
[1748760288875,9.34899492,155.19,155.14,1.5905]
[1748760289059,9.34899492,155.17,155.13,51.79509125]
[1748760289380,9.34899492,155.17,155.13,41.79509125]
[1748760290381,9.34899492,155.16,155.11,9.34899492]
[1748760290886,9.34899492,155.16,155.12,15.79549353]
[1748760298694,9.34899492,155.16,155.09,36.37684886]
[1748760298695,9.34899492,155.13,155.09,1.5703]
[1748760298899,9.34899492,155.12,155.09,1.5703]
[1748760299274,9.34899492,155.12,155.09,8.0180109]
[1748760299899,9.34899492,155.12,155.09,1.5703]
[1748760300395,9.34899492,155.12,155.08,9.34899492]
[1748760300593,9.34899492,155.11,155.07,41.79759895]
[1748760300973,9.34899492,155.11,155.07,9.34899492]
[1748760301390,9.34899492,155.14,155.1,9.34899492]
[1748760301703,9.34899492,155.15,155.1,9.34899492]
[1748760301877,48.42899492,155.16,155.12,9.34899492]
[1748760302075,9.34899492,155.16,155.12,9.34899492]
[1748760302793,9.34899492,155.16,155.13,6.4462064]
[1748760303477,9.34899492,155.17,155.13,15.79520132]
[1748760304679,14.61815397,155.17,155.13,14.61815397]
[1748760305598,14.61815397,155.18,155.14,14.61815397]
[1748760306372,14.61815397,155.18,155.11,6.44703758]
[1748760306579,14.61815397,155.18,155.14,14.61815397]
[1748760307288,10.0,155.2,155.15,14.61815397]
[1748760307605,10.0,155.2,155.16,14.61815397]
[1748760307791,24.61815397,155.2,155.16,14.61815397]
[1748760308788,10.0,155.2,155.16,14.61815397]
[1748760309500,21.06131903,155.21,155.16,14.61815397]
[1748760310504,14.61815397,155.2,155.16,14.61815397]
[1748760312686,21.06131903,155.21,155.16,14.61815397]
[1748760313380,32.64460002,155.22,155.15,6.44518124]
[1748760313605,18.02644605,155.22,155.19,14.61815397]
[1748760314009,6.5466468,155.23,155.19,14.61815397]
[1748760314608,6.5466468,155.23,155.2,14.61815397]
[1748760315820,14.61815397,155.25,155.21,14.61815397]
[1748760315990,6.44123194,155.25,155.21,14.61815397]
[1748760316189,21.05938591,155.25,155.21,14.61815397]
[1748760318511,14.61815397,155.25,155.21,21.06098194]
[1748760318689,21.05865734,155.27,155.23,14.61815397]
[1748760319317,22.8523718,155.28,155.23,14.61815397]
[1748760319517,14.61815397,155.27,155.23,14.61815397]
[1748760321908,21.05874495,155.27,155.22,14.61815397]
[1748760322215,14.61815397,155.26,155.22,14.61815397]
[1748760322430,21.05923519,155.26,155.22,14.61815397]
[1748760322925,14.61815397,155.25,155.19,6.44359921]
[1748760323097,14.61815397,155.24,155.2,14.61815397]
[1748760323600,14.61815397,155.25,155.2,14.61815397]
[1748760323807,14.61815397,155.24,155.2,14.61815397]
[1748760324018,21.05985784,155.24,155.2,14.61815397]
[1748760325095,14.61815397,155.25,155.21,14.61815397]
[1748760325294,14.61815397,155.26,155.22,14.61815397]
[1748760325791,37.47051915,155.28,155.23,14.61815397]
[1748760325991,22.85236518,155.28,155.23,14.61815397]
[1748760326314,37.47051915,155.28,155.23,14.61815397]
[1748760327507,37.47051915,155.28,155.22,14.61815397]
[1748760327508,14.61815397,155.26,155.22,14.61815397]
[1748760328393,21.05865885,155.27,155.22,21.06058832]
[1748760328793,21.05865885,155.27,155.22,14.61815397]
[1748760329801,14.61815397,155.26,155.22,14.61815397]
[1748760330003,14.61815397,155.25,155.21,14.61815397]
[1748760330201,14.61815397,155.25,155.2,14.61815397]
[1748760330892,14.61815397,155.25,155.21,14.61815397]
[1748760331606,14.61815397,155.26,155.21,14.61815397]
[1748760332126,21.05926889,155.26,155.21,14.61815397]
[1748760334318,21.05926889,155.26,155.21,21.06100015]
[1748760334505,21.05926889,155.26,155.22,14.61815397]
[1748760334710,6.44111492,155.26,155.22,14.61815397]
[1748760334915,14.61815397,155.25,155.21,21.06100015]
[1748760335216,14.61815397,155.25,155.21,14.61815397]
[1748760336322,14.61815397,155.25,155.21,21.06097267]
[1748760336498,21.05926889,155.26,155.22,14.61815397]
[1748760337315,14.61815397,155.26,155.22,14.61815397]
[1748760338428,6.44048079,155.27,155.22,14.61815397]
[1748760338606,21.05863476,155.27,155.22,21.06048302]
[1748760339124,21.05863476,155.27,155.22,14.61815397]
[1748760339421,14.61815397,155.25,155.2,40.61815397]
[1748760340721,21.05969589,155.25,155.2,40.61815397]
[1748760340912,21.05969589,155.25,155.21,14.61815397]
[1748760341315,21.05904099,155.26,155.21,14.61815397]
[1748760341517,14.61815397,155.26,155.22,14.61815397]
[1748760341708,31.03038573,155.28,155.23,14.61815397]
[1748760342212,14.61815397,155.27,155.22,14.61815397]
[1748760342420,14.61815397,155.26,155.21,14.61815397]
[1748760342807,21.05916633,155.26,155.21,14.61815397]
[1748760343897,14.61815397,155.25,155.21,14.61815397]
[1748760344103,14.61815397,155.25,155.2,14.61815397]
[1748760344302,14.61815397,155.24,155.2,14.61815397]
[1748760344520,14.61815397,155.24,155.19,14.61815397]
[1748760345220,21.06019566,155.24,155.19,14.61815397]
[1748760347920,21.06019566,155.24,155.2,14.61815397]
[1748760348206,14.61815397,155.25,155.21,14.61815397]
[1748760349027,21.0593807,155.25,155.21,14.61815397]
[1748760350705,14.61815397,155.25,155.21,14.61815397]
[1748760352728,6.44163875,155.24,155.2,14.61815397]
[1748760355413,21.05953428,155.25,155.2,14.61815397]
[1748760356541,14.61815397,155.24,155.2,14.61815397]
[1748760357129,21.06004539,155.24,155.2,14.61815397]
[1748760357933,6.44189142,155.24,155.2,14.61815397]
[1748760359538,21.06004539,155.24,155.2,14.61815397]
[1748760362038,6.44189142,155.24,155.21,14.61815397]
[1748760362541,6.44189142,155.24,155.2,14.61815397]
[1748760362835,21.06004539,155.24,155.2,14.61815397]
[1748760365544,6.44189142,155.24,155.2,14.61815397]
[1748760365731,21.05954957,155.25,155.2,14.61815397]
[1748760366915,14.61815397,155.23,155.18,14.61815397]
[1748760367126,6.4413956,155.25,155.18,14.61815397]
[1748760367127,14.61815397,155.22,155.18,14.61815397]
[1748760367318,6.44288383,155.21,155.17,14.61815397]
[1748760367546,21.0610378,155.21,155.17,14.61815397]
[1748760369045,14.61815397,155.2,155.16,14.61815397]
[1748760369246,14.61815397,155.2,155.15,40.61815397]
[1748760369943,6.44288383,155.21,155.17,14.61815397]
[1748760369944,21.0610378,155.21,155.17,14.61815397]
[1748760370858,21.0610378,155.21,155.16,14.61815397]
[1748760373224,14.61815397,155.18,155.13,26.0]
[1748760373427,14.61815397,155.17,155.13,14.61815397]
[1748760373959,14.61815397,155.16,155.12,14.61815397]
[1748760374943,14.61815397,155.17,155.12,14.61815397]
[1748760375141,14.61815397,155.17,155.13,14.61815397]
[1748760375342,14.61815397,155.18,155.13,14.61815397]
[1748760376547,21.06256884,155.18,155.14,14.61815397]
[1748760377467,14.61815397,155.19,155.14,14.61815397]
[1748760377706,14.61815397,155.19,155.15,14.61815397]
[1748760378252,14.61815397,155.19,155.14,14.61815397]
[1748760378569,6.44454469,155.17,155.13,14.61815397]
[1748760378767,21.06239409,155.18,155.13,14.61815397]
[1748760379081,21.06239409,155.18,155.14,14.61815397]
[1748760381469,14.61815397,155.18,155.14,14.61815397]
[1748760381972,14.61815397,155.15,155.09,1.6236]
[1748760382171,14.61815397,155.14,155.09,16.24175397]
[1748760382360,14.61815397,155.13,155.09,16.24175397]
[1748760382562,21.06418681,155.14,155.1,14.61815397]
[1748760382764,6.44603284,155.14,155.1,14.61815397]
[1748760385869,14.61815397,155.14,155.1,14.61815397]
[1748760387564,21.06414357,155.14,155.1,14.61815397]
[1748760389480,14.61815397,155.15,155.1,14.61815397]
[1748760389662,6.44496004,155.16,155.13,14.61815397]
[1748760390380,21.06311401,155.16,155.12,14.61815397]
[1748760391067,21.06311401,155.16,155.11,14.61815397]
[1748760393595,21.06311401,155.16,155.12,14.61815397]
[1748760397785,21.06311401,155.16,155.11,14.61815397]
[1748760397994,21.06386809,155.15,155.11,14.61815397]
[1748760398365,21.06386809,155.15,155.1,6.44743352]
[1748760398569,14.61815397,155.13,155.09,1.6236]
[1748760398782,14.61815397,155.13,155.09,16.24175397]
[1748760399578,14.61815397,155.13,155.09,14.61815397]
[1748760399982,21.06446253,155.13,155.09,14.61815397]
[1748760406698,6.72928318,155.16,155.09,14.61815397]
[1748760406899,14.61815397,155.13,155.09,14.61815397]
[1748760408188,21.06408083,155.14,155.1,14.61815397]
[1748760410701,9.35962854,155.13,155.09,9.35962854]
[1748760414612,15.80590847,155.13,155.09,9.35962854]
[1748760418622,9.35962854,155.13,155.09,15.80742219]
[1748760419299,9.35962854,155.13,155.09,9.35962854]
[1748760420314,9.35962854,155.12,155.08,9.35962854]
[1748760420508,15.80666645,155.11,155.07,9.35962854]
[1748760422748,9.35962854,155.1,155.05,9.35962854]
[1748760423220,9.35962854,155.09,155.05,9.35962854]
[1748760423800,15.80754885,155.09,155.05,9.35962854]
[1748760427904,15.80754885,155.09,155.04,15.80940973]
[1748760429519,9.35962854,155.06,155.02,1.5687]
[1748760429720,9.35962854,155.06,155.02,10.92832854]
[1748760430123,9.35962854,155.06,155.02,1.5687]
[1748760430420,9.35962854,155.05,155.01,15.81057653]
[1748760430836,9.35962854,155.04,155.0,35.35962854]
[1748760433213,15.8096175,155.04,155.0,35.35962854]
[1748760434404,9.35962854,155.03,154.98,1.5687]
[1748760434601,9.35962854,155.02,154.98,10.92832854]
[1748760435108,15.81050046,155.02,154.98,10.92832854]
[1748760435816,9.35962854,155.01,154.98,1.5687]
[1748760436015,9.35962854,155.01,154.97,9.35962854]
[1748760436218,15.81050046,155.02,154.98,9.35962854]
[1748760436707,21.09805907,155.02,154.98,14.64718715]
[1748760437753,14.64718715,154.99,154.94,26.24098715]
[1748760437932,14.64718715,154.98,154.94,22.69494459]
[1748760438734,14.64718715,154.98,154.94,8.04775744]
[1748760438915,14.64718715,154.98,154.94,22.69494459]
[1748760439630,21.09922135,154.99,154.94,22.69494459]
[1748760440306,14.64718715,154.98,154.94,16.24098715]
[1748760442535,21.09964833,154.98,154.94,16.24098715]
[1748760446716,14.64718715,154.97,154.93,14.64718715]
[1748760446916,14.64718715,154.95,154.91,16.16638715]
[1748760447640,6.45246118,154.98,154.91,16.16638715]
[1748760447641,14.64718715,154.96,154.91,16.16638715]
[1748760447822,14.64718715,154.96,154.91,22.62173169]
[1748760448018,6.45246118,154.98,154.92,14.64718715]
[1748760448234,14.64718715,154.97,154.92,14.64718715]
[1748760448442,14.64718715,154.96,154.92,14.64718715]
[1748760450132,14.64718715,154.96,154.91,7.97454454]
[1748760450342,14.64718715,154.96,154.92,14.64718715]
[1748760451315,14.64718715,154.96,154.92,21.10207151]
[1748760451749,14.64718715,154.96,154.91,22.62161164]
[1748760453122,21.10050625,154.96,154.91,22.62161164]
[1748760453620,14.64718715,154.96,154.91,21.10241164]
[1748760454332,14.64718715,154.95,154.91,14.64718715]
[1748760455744,21.10071099,154.96,154.91,14.64718715]
[1748760456626,14.64718715,154.95,154.91,14.64718715]
[1748760457442,21.10071099,154.96,154.91,21.10254461]
[1748760458242,14.64718715,154.95,154.91,14.64718715]
[1748760458741,9.38217591,154.95,154.91,9.38217591]
[1748760459326,15.83569975,154.96,154.91,9.38217591]
[1748760459742,6.45352384,154.96,154.91,15.83751648]
[1748760459958,15.83569975,154.96,154.91,15.83751648]
[1748760460736,9.38217591,154.95,154.89,6.45619471]
[1748760461045,9.38217591,154.95,154.91,9.38217591]
[1748760462439,15.83569975,154.96,154.91,9.38217591]
[1748760462631,9.38217591,154.95,154.91,9.38217591]
[1748760463231,9.38217591,154.95,154.9,6.45537389]
[1748760463232,9.38217591,154.95,154.9,9.38217591]
[1748760463643,9.38217591,154.95,154.9,15.83785594]
[1748760464226,15.83596021,154.95,154.9,15.83785594]
[1748760465332,15.83596021,154.95,154.9,9.38217591]
[1748760465954,15.83596021,154.95,154.9,15.83787759]
[1748760468829,15.83596021,154.95,154.91,9.38217591]
[1748760472562,6.4537843,154.95,154.91,9.38217591]
[1748760474835,15.83560381,154.96,154.91,15.83752981]
[1748760475041,15.83560381,154.96,154.91,9.38217591]
[1748760476131,15.83560381,154.96,154.91,15.83737161]
[1748760478459,15.83560381,154.96,154.91,9.38217591]
[1748760478662,9.38217591,154.95,154.91,9.38217591]
[1748760479167,9.38217591,154.95,154.91,15.83745495]
[1748760479473,6.4534279,154.96,154.91,15.83745495]
[1748760479474,6.45222995,154.99,154.91,6.45527904]
[1748760479656,9.38217591,154.98,154.94,9.38217591]
[1748760479851,9.38217591,154.98,154.93,9.38217591]
[1748760480052,9.38217591,154.97,154.93,9.38217591]
[1748760480258,9.38217591,154.97,154.91,6.45527904]
[1748760480259,9.38217591,154.97,154.92,9.38217591]
[1748760480959,15.83526368,154.97,154.92,9.38217591]
[1748760481352,9.38217591,154.96,154.91,9.38217591]
[1748760481670,6.45308777,154.97,154.9,9.38217591]
[1748760481671,9.38217591,154.94,154.9,9.38217591]
[1748760482360,32.45308777,154.97,154.9,9.38217591]
[1748760482361,9.38217591,154.95,154.9,9.38217591]
[1748760483041,15.83614317,154.95,154.9,9.38217591]
[1748760483560,9.38217591,154.94,154.9,9.38217591]
[1748760484359,15.83628752,154.94,154.9,9.38217591]
[1748760485949,9.38217591,154.93,154.89,9.38217591]
[1748760486166,9.38217591,154.93,154.88,9.38217591]
[1748760486556,6.45494448,154.92,154.86,42.2648]
[1748760486754,9.38217591,154.91,154.87,9.38217591]
[1748760486969,6.45494448,154.92,154.87,9.38217591]
[1748760487268,9.38217591,154.91,154.87,9.38217591]
[1748760487669,15.83712039,154.92,154.87,9.38217591]
[1748760487853,15.83671027,154.93,154.88,9.38217591]
[1748760488055,25.8356204,154.96,154.92,9.38217591]
[1748760488664,10.0,154.96,154.93,9.38217591]
[1748760490794,10.0,154.96,154.94,9.38217591]
[1748760491378,6.96663958,154.97,154.94,9.38217591]
[1748760491572,155.45260475,154.98,154.95,9.38217591]
[1748760492882,164.83478066,154.98,154.93,9.38217591]
[1748760493191,15.83478066,154.98,154.94,9.38217591]
[1748760493371,6.45260475,154.98,154.94,9.38217591]
[1748760493878,6.45260475,154.98,154.95,9.38217591]
[1748760494568,6.45212115,154.99,154.96,9.38217591]
[1748760495190,10.04,155.0,154.97,9.38217591]
[1748760495374,16.49164874,155.0,154.97,9.38217591]
[1748760496485,16.49164874,155.0,154.98,9.38217591]
[1748760496687,16.49164874,155.0,154.96,9.38217591]
[1748760496996,25.87382465,155.0,154.96,9.38217591]
[1748760497368,16.49164874,155.0,154.96,9.38217591]
[1748760497584,25.87382465,155.0,154.96,9.38217591]
[1748760500696,31.14342742,155.0,154.96,14.65177868]
[1748760502186,31.14342742,155.0,154.95,14.65177868]
[1748760504469,14.65177868,154.97,154.92,14.65177868]
[1748760504673,14.65177868,154.97,154.93,14.65177868]
[1748760504890,14.65177868,154.98,154.93,14.65177868]
[1748760505098,14.65177868,154.97,154.93,14.65177868]
[1748760505276,6.45327826,154.96,154.93,14.65177868]
[1748760507493,30.78298353,154.98,154.93,14.65177868]
[1748760508883,14.65177868,154.97,154.92,14.65177868]
[1748760510098,6.45327826,154.96,154.92,14.65177868]
[1748760510993,6.45327826,154.96,154.9,6.45564789]
[1748760511172,21.10505694,154.96,154.92,14.65177868]
[1748760511376,21.10505694,154.96,154.91,14.65177868]
[1748760512693,37.2382526,154.96,154.91,14.65177868]
[1748760513099,37.2382526,154.96,154.87,26.0]
[1748760513412,14.65177868,154.93,154.89,14.65177868]
[1748760514110,14.65177868,154.94,154.89,14.65177868]
[1748760515207,6.45452785,154.93,154.89,14.65177868]
[1748760516878,21.10630653,154.93,154.85,42.56473606]
[1748760517093,21.10630653,154.93,154.88,14.65177868]
[1748760517611,21.10630653,154.93,154.87,14.65177868]
[1748760517612,14.65177868,154.92,154.87,14.65177868]
[1748760517785,14.65177868,154.92,154.88,14.65177868]
[1748760518102,21.10630653,154.93,154.88,14.65177868]
[1748760518692,6.45452785,154.93,154.9,14.65177868]
[1748760519694,6.45411126,154.94,154.9,14.65177868]
[1748760519904,6.45411126,154.94,154.91,14.65177868]
[1748760525597,23.59667356,154.95,154.92,14.65177868]
[1748760529023,23.59667356,154.95,154.91,14.65177868]
[1748760529528,38.24845224,154.95,154.9,14.65177868]
[1748760529716,14.65177868,154.94,154.9,14.65177868]
[1748760530920,6.45452785,154.93,154.9,14.65177868]
[1748760531114,6.45452785,154.93,154.91,14.65177868]
[1748760531319,6.45427247,154.94,154.91,14.65177868]
[1748760533922,149.0,154.97,154.93,14.65177868]
[1748760534113,16.51175847,155.0,154.96,14.65177868]
[1748760534426,10.06,155.0,154.97,14.65177868]
[1748760534628,10.06,155.04,154.99,14.65177868]
[1748760534830,10.06,155.04,155.02,14.65177868]
[1748760535009,6.44969308,155.05,155.02,14.65177868]
[1748760535829,6.44969308,155.05,155.03,14.65177868]
[1748760538920,13.17984456,155.06,155.03,14.65177868]
[1748760539103,84.50476842,155.08,155.04,14.65177868]
[1748760539508,75.28,155.08,155.04,14.65177868]
[1748760539711,36.06,155.08,155.04,14.65177868]
[1748760540117,6.44882149,155.07,155.04,14.65177868]
[1748760540429,6.44882149,155.07,155.05,14.65177868]
[1748760542425,6.44882149,155.07,154.98,42.13067025]
[1748760542426,10.06,155.08,155.06,14.65177868]
[1748760542739,10.06,155.08,155.07,14.65177868]
[1748760543038,10.06,155.08,155.06,14.65177868]
[1748760545431,16.50834159,155.08,155.06,14.65177868]
[1748760545632,31.16012027,155.08,155.04,14.65177868]
[1748760545937,16.50834159,155.08,155.04,14.65177868]
[1748760546240,16.50834159,155.08,155.05,14.65177868]
[1748760546411,16.50834159,155.08,155.01,6.45108975]
[1748760546738,16.50834159,155.08,155.05,14.65177868]
[1748760554119,6.44834159,155.08,155.05,14.65177868]
[1748760556842,6.44786897,155.09,155.05,14.65177868]
[1748760557027,6.44786897,155.09,155.07,14.65177868]
[1748760557628,6.44786897,155.09,155.06,14.65177868]
[1748760561041,6.44786897,155.09,155.07,14.65177868]
[1748760563848,6.44745325,155.1,155.07,14.65177868]
[1748760564237,16.50705074,155.11,155.08,14.65177868]
[1748760564438,7.16353501,155.12,155.05,6.44947429]
[1748760564439,7.16353501,155.12,155.1,14.65177868]
[1748760564755,10.06,155.15,155.11,14.65177868]
[1748760564943,10.06,155.15,155.12,14.65177868]
[1748760565634,6.44593608,155.14,155.12,14.65177868]
[1748760567956,6.44593608,155.14,155.11,14.65177868]
[1748760568156,10.06,155.15,155.11,14.65177868]
[1748760569154,6.44593608,155.14,155.11,14.65177868]
[1748760572355,6.44593608,155.14,155.1,14.65177868]
[1748760576766,6.44593608,155.14,155.07,14.65177868]
[1748760576767,14.65177868,155.11,155.07,14.65177868]
[1748760576958,6.44745325,155.1,155.06,14.65177868]
[1748760577571,6.44745325,155.1,155.03,18.64964886]
[1748760577572,6.44745325,155.1,155.07,14.65177868]
[1748760578066,6.44703758,155.11,155.07,14.65177868]
[1748760581080,21.09881626,155.11,155.07,14.65177868]
[1748760588977,6.44703758,155.11,155.07,14.65177868]
[1748760590378,6.44703758,155.11,155.03,25.10000569]
[1748760590579,21.09881626,155.11,155.03,25.10000569]
[1748760590779,37.21641022,155.11,155.07,14.65177868]
[1748760592261,22.56463154,155.11,155.07,14.65177868]
[1748760596683,37.21641022,155.11,155.07,14.65177868]
[1748760601814,6.44703758,155.11,155.08,14.65177868]
[1748760602669,6.44703758,155.11,155.08,9.36226358]
[1748760603468,15.80930116,155.11,155.03,6.45030781]
[1748760603686,15.80930116,155.11,155.06,9.36226358]
[1748760604088,9.36226358,155.09,155.04,9.36226358]
[1748760604293,9.36226358,155.08,155.04,9.36226358]
[1748760604503,9.36226358,155.1,155.05,9.36226358]
[1748760605079,6.44786897,155.09,155.05,9.36226358]
[1748760606674,9.36226358,155.1,155.05,14.63478721]
[1748760606675,21.08224046,155.1,155.05,14.63478721]
[1748760606875,37.20087359,155.1,155.05,14.63478721]
[1748760608589,14.63478721,155.09,155.05,14.63478721]
[1748760608794,6.44828475,155.08,155.05,14.63478721]
[1748760608994,37.20378385,155.08,155.03,14.63478721]
[1748760609295,14.63478721,155.05,155.01,14.63478721]
[1748760610285,14.63478721,155.05,155.0,14.63478721]
[1748760610886,6.4499484,155.04,155.0,14.63478721]
[1748760611186,6.4499484,155.04,155.01,14.63478721]
[1748760617171,6.4495324,155.05,155.01,14.63478721]
[1748760619789,14.63478721,155.05,155.01,14.63478721]
[1748760621387,6.4499484,155.04,155.01,14.63478721]
[1748760621797,14.63478721,155.06,155.02,14.63478721]
[1748760622001,10.04,155.07,155.05,14.63478721]
[1748760622198,6.44859237,155.08,155.06,14.63478721]
[1748760622789,6.44859237,155.08,155.05,14.63478721]
[1748760624187,6.44859237,155.08,155.04,14.63478721]
[1748760624393,21.08337958,155.08,155.04,14.63478721]
[1748760624799,6.44859237,155.08,155.04,14.63478721]
[1748760630697,6.44859237,155.08,155.04,9.36710845]
[1748760630898,14.02760249,155.09,155.06,9.36710845]
[1748760631098,14.02760249,155.09,155.07,9.36710845]
[1748760631319,14.02760249,155.09,155.06,9.36710845]
[1748760632627,14.02760249,155.09,155.06,14.63375974]
[1748760635621,14.02760249,155.09,155.05,14.63375974]
[1748760636705,14.02760249,155.09,155.06,14.63375974]
[1748760641128,14.02760249,155.09,155.05,14.63375974]
[1748760644733,14.02760249,155.09,155.06,14.63375974]
[1748760646741,28.66136223,155.09,155.02,6.45078054]
[1748760646910,28.66136223,155.09,155.05,14.63375974]
[1748760647215,14.02760249,155.09,155.05,14.63375974]
[1748760648232,7.57956352,155.09,155.06,14.63375974]
[1748760648430,7.57956352,155.09,155.07,14.63375974]
[1748760649129,6.44672777,155.12,155.08,14.63375974]
[1748760649323,6.44672777,155.12,155.1,14.63375974]
[1748760649840,26.0,155.13,155.1,14.63375974]
[1748760649841,32.44634122,155.13,155.1,14.63375974]
[1748760650010,16.44592772,155.14,155.11,14.63375974]
[1748760650430,16.44592772,155.14,155.1,14.63375974]
[1748760650815,31.07968746,155.14,155.1,14.63375974]
[1748760651133,31.07968746,155.14,155.05,6.44920474]
[1748760651134,14.63375974,155.12,155.05,6.44920474]
[1748760651313,14.63375974,155.11,155.07,14.63375974]
[1748760652330,14.63375974,155.12,155.08,14.63375974]
[1748760652523,6.44703758,155.11,155.08,14.63375974]
[1748760653512,6.44703758,155.11,155.07,14.63375974]
[1748760656436,6.44703758,155.11,155.08,14.63375974]
[1748760656649,6.44703758,155.11,155.08,9.36263715]
[1748760657735,6.44662197,155.12,155.08,9.36263715]
[1748760657920,15.80925912,155.12,155.08,9.36263715]
[1748760658125,6.44662197,155.12,155.09,9.36263715]
[1748760659220,6.44662197,155.12,155.08,9.36263715]
[1748760661115,6.44621749,155.13,155.1,9.36263715]
[1748760661316,6.44621749,155.13,155.11,9.36263715]
[1748760661536,6.44621749,155.13,155.05,6.4495324]